[Event "African Games-chT 2019"]
[Site "Casablanca"]
[Date "2019.08.25"]
[Round "6.7"]
[White "Nassr, Lina"]
[Black "Caxita, Esperanca"]
[Result "1/2-1/2"]
[ECO "A46"]
[WhiteElo "1938"]
[BlackElo "1803"]
[Annotator "NA"]
[PlyCount "106"]
[EventDate "2019.08.24"]
[EventType "team-tourn"]
[EventCountry "MAR"]
[SourceTitle "playchess.com"]
[Source "ChessBase"]
[SourceQuality "1"]
[WhiteTeam "Algeria"]
[BlackTeam "Angola"]
[WhiteTeamCountry "ALG"]
[BlackTeamCountry "ANG"]
[TimeControl "900+10"]

1. d4 {[%emt 0:00:00]} Nf6 {[%emt 0:00:00]} 2. Nf3 {[%emt 0:00:00]} e6 {[%emt 0:00:00]} 3. e3 {[%emt 0:00:00]} c5 {[%emt 0:00:01]} 4. Bd3 {[%emt 0:00:19]} Nc6 {[%emt 0:00:09]} 5. O-O {[%emt 0:00:30]} d5 {[%emt 0:00:12]} 6. b3 {[%emt 0:00:07]} cxd4 {[%emt 0:00:27]} 7. exd4 {[%emt 0:00:03]} Bd6 {[%emt 0:00:10]} 8. Bb2 {[%emt 0:00:13]} O-O {[%emt 0:00:06]} 9. a3 {[%emt 0:00:04]} Ne7 {[%emt 0:01:35]} 10. Nbd2 {[%emt 0:01:25]} Bd7 {[%emt 0:00:44]} 11. Ne5 {[%emt 0:00:31]} Ng6 {[%emt 0:00:44]} 12. f4 {[%emt 0:01:13]} a6 {[%emt 0:01:23]} 13. Qe2 {[%emt 0:01:17]} Rc8 {[%emt 0:00:56]} 14. g3 {[%emt 0:01:02]} Qb6 {[%emt 0:00:22]} 15. Ndf3 {[%emt 0:02:24]} Bb5 {[%emt 0:01:00]} 16. c4 {[%emt 0:00:59]} dxc4 {[%emt 0:03:52]} 17. bxc4 {[%emt 0:00:09]} Bc6 {[%emt 0:02:17]} 18. c5 {[%emt 0:01:13]} Bxc5 {[%emt 0:00:02]} 19. dxc5 {[%emt 0:00:02]} Qxc5+ {[%emt 0:00:01]} 20. Bd4 {[%emt 0:00:23]} Bxf3 {[%emt 0:01:01]} 21. Nxf3 {[%emt 0:00:08]} Qd6 {[%emt 0:00:01]} 22. Rfd1 {[%emt 0:01:29]} Qe7 {[%emt 0:00:32]} 23. Qb2 {[%emt 0:01:18]} Rfd8 {[%emt 0:00:35]} 24. a4 {[%emt 0:00:33]} Rd7 {[%emt 0:01:20]} 25. Rac1 {[%emt 0:01:48]} Rdd8 {[%emt 0:00:13]} 26. Bb1 {[%emt 0:00:48]} Nd5 {[%emt 0:00:41]} 27. Be4 {[%emt 0:00:46]} f6 {[%emt 0:00:24]} 28. Bxd5 {[%emt 0:00:19]} exd5 {[%emt 0:00:05]} 29. Bb6 {[%emt 0:00:11]} Rxc1 {[%emt 0:00:15]} 30. Rxc1 {[%emt 0:00:14]} Rd7 {[%emt 0:00:01]} 31. Qd4 {[%emt 0:00:24]} Kf7 {[%emt 0:00:12]} 32. Re1 {[%emt 0:00:07]} Qd6 {[%emt 0:00:11]} 33. Bc5 {[%emt 0:00:03]} Qc6 {[%emt 0:00:01]} 34. Qe3 {[%emt 0:00:06]} Rc7 {[%emt 0:00:17]} 35. f5 {[%emt 0:00:24]} Qxc5 {[%emt 0:00:35]} 36. fxg6+ {[%emt 0:00:14]} hxg6 {[%emt 0:00:02]} 37. Nd4 {[%emt 0:00:08]} Re7 {[%emt 0:00:11]} 38. Qxe7+ {[%emt 0:00:03]} Qxe7 {[%emt 0:00:01]} 39. Rxe7+ {[%emt 0:00:01]} Kxe7 {[%emt 0:00:00]} 40. Kf2 {[%emt 0:00:01]} Kd6 {[%emt 0:00:02]} 41. Nb3 {[%emt 0:00:27]} g5 {[%emt 0:00:09]} 42. Ke3 {[%emt 0:00:11]} f5 {[%emt 0:00:04]} 43. Kd4 {[%emt 0:00:08]} b6 {[%emt 0:00:06]} 44. Nd2 {[%emt 0:00:18]} f4 {[%emt 0:00:18]} 45. gxf4 {[%emt 0:00:05]} gxf4 {[%emt 0:00:01]} 46. h4 {[%emt 0:00:13]} b5 {[%emt 0:00:38]} 47. a5 {[%emt 0:00:15]} b4 {[%emt 0:00:11]} 48. Nf3 {[%emt 0:00:11]} Kc6 {[%emt 0:00:08]} 49. Nd2 {[%emt 0:00:09]} g6 {[%emt 0:00:08]} 50. Nb3 {[%emt 0:00:07]} Kd6 {[%emt 0:00:28]} 51. Nd2 {[%emt 0:00:12]} Kc6 {[%emt 0:00:02]} 52. Nb3 {[%emt 0:00:05]} Kd6 {[%emt 0:00:01]} 53. Nd2 {[%emt 0:00:10]} Kc6 {[%emt 0:00:00]} 1/2-1/2

[Event "African Games-chT 2019"]
[Site "Casablanca"]
[Date "2019.08.25"]
[Round "6.8"]
[White "Pires, Luzia"]
[Black "Latreche, Sabrina"]
[Result "1/2-1/2"]
[ECO "C20"]
[WhiteElo "1924"]
[BlackElo "2064"]
[Annotator "NA"]
[PlyCount "158"]
[EventDate "2019.08.24"]
[EventType "team-tourn"]
[EventCountry "MAR"]
[SourceTitle "playchess.com"]
[Source "ChessBase"]
[SourceQuality "1"]
[WhiteTeam "Angola"]
[BlackTeam "Algeria"]
[WhiteTeamCountry "ANG"]
[BlackTeamCountry "ALG"]
[TimeControl "900+10"]

1. e4 {[%emt 0:00:00]} e5 {[%emt 0:00:00]} 2. g3 {[%emt 0:00:02]} Nf6 {[%emt 0:00:00]} 3. d3 {[%emt 0:00:02]} Bc5 {[%emt 0:00:15]} 4. Bg2 {[%emt 0:00:09]} d6 {[%emt 0:00:05]} 5. Nf3 {[%emt 0:00:09]} Nc6 {[%emt 0:00:14]} 6. h3 {[%emt 0:00:22]} h6 {[%emt 0:00:08]} 7. O-O {[%emt 0:00:03]} O-O {[%emt 0:00:07]} 8. Kh2 {[%emt 0:00:04]} Ne7 {[%emt 0:00:59]} 9. Nc3 {[%emt 0:00:24]} Ng6 {[%emt 0:00:07]} 10. Ne2 {[%emt 0:00:53]} c6 {[%emt 0:01:24]} 11. Nd2 {[%emt 0:00:53]} Nh7 {[%emt 0:02:33]} 12. Nb3 {[%emt 0:00:19]} Bb6 {[%emt 0:00:08]} 13. f4 {[%emt 0:00:02]} exf4 {[%emt 0:00:15]} 14. Nxf4 {[%emt 0:00:02]} Nxf4 {[%emt 0:01:04]} 15. Bxf4 {[%emt 0:00:03]} Be6 {[%emt 0:00:02]} 16. Nd2 {[%emt 0:00:18]} d5 {[%emt 0:00:19]} 17. exd5 {[%emt 0:01:29]} Bxd5 {[%emt 0:00:01]} 18. Ne4 {[%emt 0:00:44]} f5 {[%emt 0:00:43]} 19. Nc3 {[%emt 0:00:22]} Bxg2 {[%emt 0:00:12]} 20. Kxg2 {[%emt 0:00:01]} Nf6 {[%emt 0:00:34]} 21. Qf3 {[%emt 0:00:28]} Nd5 {[%emt 0:01:02]} 22. Nxd5 {[%emt 0:01:20]} Qxd5 {[%emt 0:00:02]} 23. Qxd5+ {[%emt 0:00:05]} cxd5 {[%emt 0:00:01]} 24. Rae1 {[%emt 0:00:56]} Rfe8 {[%emt 0:00:18]} 25. Be5 {[%emt 0:00:43]} g6 {[%emt 0:00:34]} 26. d4 {[%emt 0:00:10]} Re6 {[%emt 0:00:21]} 27. c3 {[%emt 0:00:21]} Rae8 {[%emt 0:00:01]} 28. Rd1 {[%emt 0:01:11]} Bd8 {[%emt 0:00:30]} 29. Rd2 {[%emt 0:00:18]} Bf6 {[%emt 0:00:21]} 30. Bxf6 {[%emt 0:00:34]} Rxf6 {[%emt 0:00:02]} 31. h4 {[%emt 0:00:44]} h5 {[%emt 0:00:15]} 32. Kf3 {[%emt 0:00:24]} Rfe6 {[%emt 0:00:20]} 33. Rff2 {[%emt 0:00:28]} Re3+ {[%emt 0:00:02]} 34. Kg2 {[%emt 0:00:01]} R8e4 {[%emt 0:00:03]} 35. Rf3 {[%emt 0:00:29]} Kf7 {[%emt 0:01:24]} 36. Rxe3 {[%emt 0:00:23]} Rxe3 {[%emt 0:00:01]} 37. Kf2 {[%emt 0:00:04]} f4 {[%emt 0:00:33]} 38. gxf4 {[%emt 0:00:55]} Rh3 {[%emt 0:00:01]} 39. Re2 {[%emt 0:00:05]} Rxh4 {[%emt 0:00:20]} 40. Kg3 {[%emt 0:00:03]} Rg4+ {[%emt 0:00:12]} 41. Kf3 {[%emt 0:00:00]} g5 {[%emt 0:00:53]} 42. fxg5 {[%emt 0:00:30]} Rxg5 {[%emt 0:00:01]} 43. Kf4 {[%emt 0:00:09]} Rg4+ {[%emt 0:00:31]} 44. Kf5 {[%emt 0:00:04]} Rg1 {[%emt 0:00:02]} 45. Rh2 {[%emt 0:00:12]} Rb1 {[%emt 0:00:53]} 46. Kg5 {[%emt 0:00:09]} Ke6 {[%emt 0:00:12]} 47. Kxh5 {[%emt 0:00:04]} a5 {[%emt 0:00:21]} 48. Kg5 {[%emt 0:00:05]} Rg1+ {[%emt 0:00:37]} 49. Kf4 {[%emt 0:00:05]} Rf1+ {[%emt 0:00:02]} 50. Ke3 {[%emt 0:00:08]} Rf6 {[%emt 0:00:13]} 51. Rh7 {[%emt 0:00:11]} b6 {[%emt 0:00:02]} 52. Rb7 {[%emt 0:00:22]} Kf5 {[%emt 0:00:02]} 53. Re7 {[%emt 0:00:10]} Rd6 {[%emt 0:00:28]} 54. Re5+ {[%emt 0:00:10]} Kf6 {[%emt 0:00:01]} 55. Kd3 {[%emt 0:00:01]} b5 {[%emt 0:00:54]} 56. b3 {[%emt 0:00:24]} a4 {[%emt 0:00:19]} 57. c4 {[%emt 0:00:27]} axb3 {[%emt 0:01:01]} 58. axb3 {[%emt 0:00:16]} dxc4+ {[%emt 0:00:03]} 59. bxc4 {[%emt 0:00:05]} bxc4+ {[%emt 0:00:00]} 60. Kxc4 {[%emt 0:00:04]} Ra6 {[%emt 0:00:07]} 61. Rb5 {[%emt 0:00:20]} Ke6 {[%emt 0:00:43]} 62. Kc5 {[%emt 0:00:22]} Rd6 {[%emt 0:00:00]} 63. Rb1 {[%emt 0:00:32]} Rd5+ {[%emt 0:00:08]} 64. Kc4 {[%emt 0:00:02]} Rd6 {[%emt 0:00:01]} 65. Re1+ {[%emt 0:00:02]} Kd7 {[%emt 0:00:01]} 66. d5 {[%emt 0:00:08]} Ra6 {[%emt 0:00:09]} 67. Rh1 {[%emt 0:00:10]} Ra4+ {[%emt 0:00:17]} 68. Kc5 {[%emt 0:00:02]} Ra5+ {[%emt 0:00:02]} 69. Kd4 {[%emt 0:00:01]} Ra2 {[%emt 0:00:30]} 70. Rh7+ {[%emt 0:00:36]} Kd6 {[%emt 0:00:01]} 71. Rh6+ {[%emt 0:00:01]} Kd7 {[%emt 0:00:02]} 72. Rh3 {[%emt 0:01:03]} Kd6 {[%emt 0:00:18]} 73. Rd3 {[%emt 0:00:07]} Ra5 {[%emt 0:00:13]} 74. Ke4 {[%emt 0:00:02]} Ra4+ {[%emt 0:00:25]} 75. Rd4 {[%emt 0:00:01]} Ra5 {[%emt 0:00:11]} 76. Rd3 {[%emt 0:00:38]} Ra4+ {[%emt 0:00:01]} 77. Kf5 {[%emt 0:00:06]} Ra5 {[%emt 0:00:07]} 78. Ke4 {[%emt 0:00:24]} Ra4+ {[%emt 0:00:01]} 79. Rd4 {[%emt 0:00:01]} Ra5 {[%emt 0:00:02]} 1/2-1/2

[Event "African Games-chT 2019"]
[Site "Casablanca"]
[Date "2019.08.25"]
[Round "6.9"]
[White "Zaibi, Amir"]
[Black "Oatlhotse, Providence"]
[Result "1-0"]
[ECO "A36"]
[WhiteElo "2367"]
[BlackElo "2252"]
[Annotator "ChessBase"]
[PlyCount "127"]
[EventDate "2019.08.24"]
[EventType "team-tourn"]
[EventCountry "MAR"]
[SourceTitle "playchess.com"]
[Source "ChessBase"]
[SourceQuality "1"]
[WhiteTeam "Tunisia"]
[BlackTeam "Botswana"]
[WhiteTeamCountry "TUN"]
[BlackTeamCountry "BOT"]
[TimeControl "900+10"]

1. c4 {[%emt 0:00:00]} c5 {[%emt 0:00:14]} 2. Nc3 {[%emt 0:00:00]} g6 {[%emt 0:00:18]} 3. g3 {[%emt 0:00:00]} Bg7 {[%emt 0:00:00]} 4. Bg2 {[%emt 0:00:00]} Nc6 {[%emt 0:00:01]} 5. e3 {[%emt 0:00:06]} Nf6 {[%emt 0:00:02]} 6. Nge2 {[%emt 0:00:02]} O-O {[%emt 0:00:04]} 7. O-O {[%emt 0:00:03]} d6 {[%emt 0:00:04]} 8. b3 {[%emt 0:00:25]} Bf5 {[%emt 0:00:44]} 9. d3 {[%emt 0:00:31]} Nb4 {[%emt 0:00:24]} 10. e4 {[%emt 0:00:18]} Bg4 {[%emt 0:00:19]} 11. f3 {[%emt 0:01:13]} Bd7 {[%emt 0:00:03]} 12. d4 {[%emt 0:00:14]} cxd4 {[%emt 0:03:03]} 13. Nxd4 {[%emt 0:00:02]} Qa5 {[%emt 0:00:09]} 14. Be3 {[%emt 0:00:42]} Nc6 {[%emt 0:00:38]} 15. Rc1 {[%emt 0:00:42]} Rfc8 {[%emt 0:00:19]} 16. Qd2 {[%emt 0:00:37]} Nxd4 {[%emt 0:00:18]} 17. Bxd4 {[%emt 0:00:05]} b5 {[%emt 0:00:11]} 18. cxb5 {[%emt 0:01:21]} Bxb5 {[%emt 0:00:12]} 19. Rfd1 {[%emt 0:00:05]} Be8 {[%emt 0:03:41]} 20. Qb2 {[%emt 0:03:45]} Rab8 {[%emt 0:01:10]} 21. Nd5 {[%emt 0:01:46]} Nxd5 {[%emt 0:00:11]} 22. Bxg7 {[%emt 0:00:04]} Ne3 {[%emt 0:00:14]} 23. Bh6 {[%emt 0:00:24]} Rc3 {[%emt 0:01:12]} 24. Qxc3 {[%emt 0:02:05]} Qxc3 25. Rxc3 {[%emt 0:00:01]} Nxd1 {[%emt 0:00:07]} 26. Rd3 {[%emt 0:00:05]} Nb2 {[%emt 0:02:36]} 27. Rd2 {[%emt 0:00:02]} Na4 {[%emt 0:00:15]} 28. bxa4 {[%emt 0:00:02]} Bxa4 {[%emt 0:00:00]} 29. h4 {[%emt 0:00:08]} a5 {[%emt 0:00:14]} 30. Kf2 {[%emt 0:00:05]} Bd7 {[%emt 0:00:10]} 31. e5 {[%emt 0:00:12]} Be6 {[%emt 0:01:10]} 32. exd6 {[%emt 0:00:02]} exd6 {[%emt 0:00:00]} 33. Bf4 {[%emt 0:00:22]} a4 {[%emt 0:00:23]} 34. Bxd6 {[%emt 0:00:01]} Rd8 {[%emt 0:00:12]} 35. a3 {[%emt 0:00:02]} f6 {[%emt 0:00:27]} 36. Bf1 {[%emt 0:00:14]} Kf7 {[%emt 0:00:02]} 37. Bb4 {[%emt 0:00:12]} Rb8 {[%emt 0:00:28]} 38. Rc2 {[%emt 0:00:45]} Rb7 {[%emt 0:01:02]} 39. Bc4 {[%emt 0:00:05]} Bxc4 {[%emt 0:00:29]} 40. Rxc4 {[%emt 0:00:01]} h5 {[%emt 0:00:04]} 41. Rc6 {[%emt 0:00:13]} g5 {[%emt 0:00:14]} 42. hxg5 {[%emt 0:00:09]} fxg5 {[%emt 0:00:01]} 43. Rh6 {[%emt 0:00:02]} Rb5 {[%emt 0:00:08]} 44. Rxh5 {[%emt 0:00:07]} Kg6 {[%emt 0:00:00]} 45. g4 {[%emt 0:00:09]} Rd5 {[%emt 0:00:08]} 46. Rh1 {[%emt 0:00:17]} Rd8 {[%emt 0:00:05]} 47. Rc1 {[%emt 0:00:03]} Rh8 {[%emt 0:00:04]} 48. Rc6+ {[%emt 0:00:02]} Kf7 {[%emt 0:00:01]} 49. Ra6 {[%emt 0:00:13]} Rh2+ {[%emt 0:00:12]} 50. Kg3 {[%emt 0:00:01]} Rc2 {[%emt 0:00:21]} 51. Rxa4 {[%emt 0:00:03]} Kg6 {[%emt 0:00:01]} 52. Ra6+ {[%emt 0:00:01]} Kh7 {[%emt 0:00:02]} 53. Be7 {[%emt 0:00:06]} Re2 {[%emt 0:00:14]} 54. Bxg5 {[%emt 0:00:05]} Rc2 {[%emt 0:00:01]} 55. a4 {[%emt 0:00:05]} Rc5 {[%emt 0:00:02]} 56. Bf4 {[%emt 0:00:02]} Rc4 {[%emt 0:00:03]} 57. a5 {[%emt 0:00:01]} Rb4 {[%emt 0:00:01]} 58. Rb6 {[%emt 0:00:07]} Rc4 {[%emt 0:00:06]} 59. a6 {[%emt 0:00:02]} Ra4 {[%emt 0:00:00]} 60. Rb7+ {[%emt 0:00:03]} Kg6 {[%emt 0:00:01]} 61. a7 {[%emt 0:00:09]} Ra5 {[%emt 0:00:10]} 62. Be3 {[%emt 0:00:20]} Ra3 {[%emt 0:00:09]} 63. Bf2 {[%emt 0:00:02]} Ra1 {[%emt 0:00:09]} 64. Rb8 {[%emt 0:00:01]} 1-0

[Event "African Games-chT 2019"]
[Site "Casablanca"]
[Date "2019.08.25"]
[Round "6.10"]
[White "Khetho, Phemelo"]
[Black "Boudriga, Mohamed Ali"]
[Result "1/2-1/2"]
[ECO "C41"]
[WhiteElo "2178"]
[BlackElo "2325"]
[Annotator "ChessBase"]
[PlyCount "192"]
[EventDate "2019.08.24"]
[EventType "team-tourn"]
[EventCountry "MAR"]
[SourceTitle "playchess.com"]
[Source "ChessBase"]
[SourceQuality "1"]
[WhiteTeam "Botswana"]
[BlackTeam "Tunisia"]
[WhiteTeamCountry "BOT"]
[BlackTeamCountry "TUN"]
[TimeControl "900+10"]

1. e4 {[%emt 0:00:00]} e5 {[%emt 0:00:29]} 2. Nf3 {[%emt 0:00:00]} d6 {[%emt 0:00:02]} 3. Nc3 {[%emt 0:00:14]} Nf6 {[%emt 0:00:04]} 4. d4 {[%emt 0:00:40]} exd4 {[%emt 0:00:04]} 5. Nxd4 {[%emt 0:00:02]} Be7 {[%emt 0:00:01]} 6. Be2 {[%emt 0:00:04]} O-O {[%emt 0:00:03]} 7. O-O {[%emt 0:00:04]} Nc6 {[%emt 0:00:14]} 8. Be3 {[%emt 0:00:21]} Re8 {[%emt 0:00:02]} 9. Re1 {[%emt 0:01:19]} h6 {[%emt 0:00:39]} 10. f3 {[%emt 0:00:29]} a6 {[%emt 0:01:24]} 11. Qd2 {[%emt 0:00:59]} Ne5 {[%emt 0:01:17]} 12. Rad1 {[%emt 0:00:25]} Bf8 {[%emt 0:00:24]} 13. Bf1 {[%emt 0:00:47]} c5 {[%emt 0:01:21]} 14. Nf5 {[%emt 0:01:07]} Bxf5 {[%emt 0:00:15]} 15. exf5 {[%emt 0:00:02]} Qb6 {[%emt 0:04:19]} 16. b3 {[%emt 0:00:51]} Qc6 {[%emt 0:00:43]} 17. Nd5 {[%emt 0:00:16]} Nxd5 {[%emt 0:00:02]} 18. Qxd5 {[%emt 0:00:03]} Qxd5 {[%emt 0:00:06]} 19. Rxd5 {[%emt 0:00:03]} Nc6 {[%emt 0:00:07]} 20. Bd2 {[%emt 0:01:41]} Rxe1 {[%emt 0:02:01]} 21. Bxe1 {[%emt 0:00:02]} Rd8 {[%emt 0:00:11]} 22. g4 {[%emt 0:00:32]} Nd4 {[%emt 0:00:09]} 23. Ba5 {[%emt 0:02:07]} Re8 {[%emt 0:01:24]} 24. c3 {[%emt 0:00:05]} Nxf3+ {[%emt 0:00:05]} 25. Kg2 {[%emt 0:00:03]} Ne5 {[%emt 0:00:11]} 26. h3 {[%emt 0:00:02]} Nc6 {[%emt 0:01:58]} 27. Bc7 {[%emt 0:00:08]} Rc8 {[%emt 0:00:07]} 28. Bb6 {[%emt 0:00:03]} Ne5 {[%emt 0:00:07]} 29. Ba5 {[%emt 0:00:32]} Nd7 {[%emt 0:00:10]} 30. c4 {[%emt 0:00:08]} Ne5 {[%emt 0:00:24]} 31. Bc3 {[%emt 0:00:11]} Nc6 {[%emt 0:00:03]} 32. Kf2 {[%emt 0:00:36]} Rd8 {[%emt 0:00:11]} 33. Bg2 {[%emt 0:00:10]} Be7 {[%emt 0:00:01]} 34. Rd1 {[%emt 0:01:08]} Bf6 {[%emt 0:00:10]} 35. Bxf6 {[%emt 0:00:54]} gxf6 {[%emt 0:00:01]} 36. Re1 {[%emt 0:00:11]} Kf8 {[%emt 0:00:05]} 37. Bxc6 {[%emt 0:00:24]} bxc6 {[%emt 0:00:01]} 38. Kf3 {[%emt 0:00:23]} a5 {[%emt 0:00:08]} 39. a4 {[%emt 0:00:12]} Rb8 {[%emt 0:00:43]} 40. Re3 {[%emt 0:00:02]} d5 {[%emt 0:00:14]} 41. cxd5 {[%emt 0:01:23]} cxd5 {[%emt 0:00:02]} 42. Rc3 {[%emt 0:00:02]} Rc8 {[%emt 0:00:13]} 43. Rd3 {[%emt 0:00:16]} Rd8 {[%emt 0:00:02]} 44. Rc3 {[%emt 0:00:01]} Rc8 {[%emt 0:00:01]} 45. Rd3 {[%emt 0:00:01]} d4 {[%emt 0:00:03]} 46. Ke4 {[%emt 0:00:01]} Rd8 {[%emt 0:00:02]} 47. Rd1 {[%emt 0:00:02]} Ke7 {[%emt 0:00:01]} 48. Kd3 {[%emt 0:00:03]} Kd6 {[%emt 0:00:01]} 49. Re1 {[%emt 0:00:02]} Rb8 {[%emt 0:00:05]} 50. Kc2 {[%emt 0:00:01]} Kd7 {[%emt 0:01:05]} 51. Rc1 {[%emt 0:00:13]} Re8 {[%emt 0:00:05]} 52. Kd3 {[%emt 0:00:34]} Kc6 {[%emt 0:00:08]} 53. Rh1 {[%emt 0:01:07]} Re3+ {[%emt 0:00:03]} 54. Kc2 {[%emt 0:00:01]} Kd5 {[%emt 0:00:04]} 55. h4 {[%emt 0:00:03]} Rg3 {[%emt 0:00:53]} 56. g5 {[%emt 0:00:11]} fxg5 {[%emt 0:00:03]} 57. hxg5 {[%emt 0:00:02]} hxg5 {[%emt 0:00:17]} 58. Rh7 {[%emt 0:00:10]} c4 {[%emt 0:00:01]} 59. bxc4+ {[%emt 0:00:04]} Kxc4 {[%emt 0:00:02]} 60. Rxf7 {[%emt 0:00:00]} Rg2+ {[%emt 0:00:02]} 61. Kc1 {[%emt 0:00:02]} Rf2 {[%emt 0:00:15]} 62. f6 {[%emt 0:00:06]} Kd3 {[%emt 0:00:02]} 63. Rg7 {[%emt 0:00:03]} Rxf6 {[%emt 0:00:10]} 64. Rxg5 {[%emt 0:00:02]} Kc3 {[%emt 0:00:13]} 65. Rc5+ {[%emt 0:00:06]} Kb4 {[%emt 0:00:03]} 66. Rb5+ {[%emt 0:00:10]} Kxa4 {[%emt 0:00:03]} 67. Rb8 {[%emt 0:00:00]} Rf5 {[%emt 0:00:23]} 68. Rd8 {[%emt 0:00:09]} Rc5+ {[%emt 0:00:03]} 69. Kb2 {[%emt 0:00:02]} Rc4 {[%emt 0:00:04]} 70. Rd7 {[%emt 0:00:09]} Kb4 {[%emt 0:00:08]} 71. Rb7+ {[%emt 0:00:03]} Kc5 {[%emt 0:00:03]} 72. Rd7 {[%emt 0:00:24]} a4 {[%emt 0:00:13]} 73. Ka3 {[%emt 0:00:44]} Rc3+ {[%emt 0:00:54]} 74. Kxa4 {[%emt 0:00:01]} Kc4 {[%emt 0:00:01]} 75. Rd8 {[%emt 0:00:49]} Kd3 {[%emt 0:00:08]} 76. Kb4 {[%emt 0:00:01]} Rc7 {[%emt 0:00:01]} 77. Kb3 {[%emt 0:00:03]} Ke3 {[%emt 0:00:03]} 78. Re8+ {[%emt 0:00:03]} Kd2 {[%emt 0:00:02]} 79. Rh8 {[%emt 0:00:02]} Rc3+ {[%emt 0:00:43]} 80. Kb2 {[%emt 0:00:03]} Re3 {[%emt 0:00:09]} 81. Rh4 {[%emt 0:01:07]} d3 {[%emt 0:00:05]} 82. Rh1 {[%emt 0:00:01]} Re2 {[%emt 0:00:25]} 83. Rg1 {[%emt 0:00:07]} Rh2 {[%emt 0:00:02]} 84. Rg8 {[%emt 0:01:12]} Ke1+ {[%emt 0:00:29]} 85. Kc3 {[%emt 0:00:09]} d2 {[%emt 0:00:06]} 86. Rg1+ {[%emt 0:00:13]} Ke2 {[%emt 0:00:05]} 87. Kc2 {[%emt 0:00:07]} Rf2 {[%emt 0:01:09]} 88. Rd1 {[%emt 0:00:13]} Ke3 {[%emt 0:00:05]} 89. Rh1 {[%emt 0:00:01]} Ke2 {[%emt 0:00:14]} 90. Rd1 {[%emt 0:00:01]} Ke3 {[%emt 0:00:03]} 91. Rh1 {[%emt 0:00:01]} Rg2 {[%emt 0:00:09]} 92. Kd1 {[%emt 0:00:09]} Rg3 {[%emt 0:00:05]} 93. Rf1 {[%emt 0:00:06]} Rh3 {[%emt 0:00:05]} 94. Rg1 Rf3 {[%emt 0:00:07]} 95. Rh1 {[%emt 0:00:06]} Kd3 {[%emt 0:00:02]} 96. Rh3 {[%emt 0:00:16]} Rxh3 {[%emt 0:00:03]} 1/2-1/2

[Event "African Games-chT 2019"]
[Site "Casablanca"]
[Date "2019.08.25"]
[Round "6.11"]
[White "Marzouk, Amira"]
[Black "Francis, Onkemetse"]
[Result "1/2-1/2"]
[ECO "D00"]
[WhiteElo "1698"]
[BlackElo "1792"]
[Annotator "NA"]
[PlyCount "129"]
[EventDate "2019.08.24"]
[EventType "team-tourn"]
[EventCountry "MAR"]
[SourceTitle "playchess.com"]
[Source "ChessBase"]
[SourceQuality "1"]
[WhiteTeam "Tunisia"]
[BlackTeam "Botswana"]
[WhiteTeamCountry "TUN"]
[BlackTeamCountry "BOT"]
[TimeControl "900+10"]

1. d4 {[%emt 0:00:00]} d5 {[%emt 0:00:00]} 2. Bf4 {[%emt 0:00:00]} Nf6 {[%emt 0:00:02]} 3. e3 {[%emt 0:00:00]} c5 {[%emt 0:00:07]} 4. c3 {[%emt 0:00:00]} Bf5 {[%emt 0:00:28]} 5. Nf3 {[%emt 0:00:03]} Qb6 {[%emt 0:00:16]} 6. Qb3 {[%emt 0:00:13]} c4 {[%emt 0:00:52]} 7. Qxb6 {[%emt 0:00:03]} axb6 {[%emt 0:00:01]} 8. Nbd2 {[%emt 0:00:06]} b5 {[%emt 0:00:05]} 9. h3 {[%emt 0:00:12]} h6 {[%emt 0:00:03]} 10. Ne5 {[%emt 0:00:13]} e6 {[%emt 0:00:16]} 11. Be2 {[%emt 0:00:11]} Be7 {[%emt 0:00:44]} 12. Ndf3 {[%emt 0:00:23]} b4 {[%emt 0:00:18]} 13. Kd2 {[%emt 0:00:26]} bxc3+ {[%emt 0:00:34]} 14. bxc3 {[%emt 0:00:09]} Ne4+ {[%emt 0:00:02]} 15. Ke1 {[%emt 0:00:28]} Nxc3 {[%emt 0:00:06]} 16. Nd2 {[%emt 0:01:20]} Nd7 {[%emt 0:01:53]} 17. Nxd7 {[%emt 0:00:49]} Kxd7 {[%emt 0:00:02]} 18. Nxc4 {[%emt 0:00:49]} dxc4 {[%emt 0:00:26]} 19. Bxc4 {[%emt 0:00:01]} Bd6 {[%emt 0:01:10]} 20. Bxd6 {[%emt 0:00:27]} Kxd6 {[%emt 0:00:01]} 21. f3 {[%emt 0:00:15]} Rhc8 {[%emt 0:00:27]} 22. Bb3 {[%emt 0:00:14]} Nb5 {[%emt 0:00:48]} 23. a4 {[%emt 0:00:35]} Na7 {[%emt 0:00:35]} 24. e4 {[%emt 0:00:23]} Bh7 {[%emt 0:00:03]} 25. Kd2 {[%emt 0:00:16]} Rc7 {[%emt 0:00:08]} 26. d5 {[%emt 0:01:21]} Rac8 {[%emt 0:00:08]} 27. dxe6 {[%emt 0:00:32]} fxe6 {[%emt 0:00:01]} 28. Rhd1 {[%emt 0:00:11]} Ke7 {[%emt 0:00:10]} 29. Ke1 {[%emt 0:00:07]} Bg8 {[%emt 0:00:31]} 30. e5 {[%emt 0:01:48]} Rc3 {[%emt 0:00:11]} 31. Rab1 {[%emt 0:00:31]} Re3+ {[%emt 0:00:15]} 32. Kf2 {[%emt 0:00:03]} Rxe5 {[%emt 0:00:01]} 33. Ba2 {[%emt 0:00:10]} Rc7 {[%emt 0:00:02]} 34. Rd2 {[%emt 0:00:35]} Rec5 {[%emt 0:00:12]} 35. Kg3 {[%emt 0:00:12]} Nc6 {[%emt 0:00:23]} 36. Rdb2 {[%emt 0:01:20]} Na5 {[%emt 0:00:16]} 37. Bb3 {[%emt 0:00:15]} Bh7 {[%emt 0:00:44]} 38. Re1 {[%emt 0:00:09]} Nxb3 {[%emt 0:00:01]} 39. Rxb3 {[%emt 0:00:01]} Ra5 {[%emt 0:01:57]} 40. Rb6 {[%emt 0:00:19]} Ra6 {[%emt 0:01:14]} 41. Rexe6+ {[%emt 0:01:04]} Kd7 {[%emt 0:00:05]} 42. Rxa6 {[%emt 0:01:05]} bxa6 {[%emt 0:00:01]} 43. Rxa6 {[%emt 0:00:01]} Bc2 {[%emt 0:00:18]} 44. a5 {[%emt 0:00:21]} g6 {[%emt 0:00:04]} 45. Ra8 {[%emt 0:00:09]} Kc6 {[%emt 0:00:12]} 46. Kf4 {[%emt 0:03:06]} Kb7 {[%emt 0:00:19]} 47. Rh8 {[%emt 0:00:10]} h5 {[%emt 0:00:01]} 48. Re8 {[%emt 0:00:23]} Rc4+ {[%emt 0:00:15]} 49. Ke3 {[%emt 0:00:24]} Rc5 {[%emt 0:00:07]} 50. Kd4 {[%emt 0:00:54]} Rxa5 {[%emt 0:00:11]} 51. Re5 {[%emt 0:00:02]} Ra6 {[%emt 0:01:44]} 52. Rb5+ {[%emt 0:00:13]} Kc7 {[%emt 0:00:53]} 53. Rc5+ {[%emt 0:00:04]} Rc6 {[%emt 0:00:01]} 54. Rxc6+ Kxc6 {[%emt 0:00:02]} 55. Ke5 {[%emt 0:00:22]} Bd3 {[%emt 0:00:37]} 56. h4 {[%emt 0:00:24]} Kd7 {[%emt 0:00:32]} 57. Kf6 {[%emt 0:00:11]} Kd6 {[%emt 0:00:05]} 58. g4 {[%emt 0:00:09]} hxg4 {[%emt 0:00:31]} 59. fxg4 {[%emt 0:00:02]} Kd5 {[%emt 0:00:01]} 60. h5 {[%emt 0:00:17]} gxh5 {[%emt 0:00:20]} 61. gxh5 {[%emt 0:00:02]} Kd6 {[%emt 0:00:03]} 62. h6 {[%emt 0:00:02]} Kd5 {[%emt 0:00:01]} 63. Kg7 {[%emt 0:00:02]} Ke5 {[%emt 0:00:02]} 64. h7 {[%emt 0:00:02]} Bxh7 65. Kxh7 1/2-1/2